Cogmind - Beta 17 @@@ ROGUE MODE // 2026.07.06 @ 18:16:44 Player: goobie Result: Destroyed by G-47 Trooper with Particle Gun Performance ------------- Evolutions (2) 1000 Regions Visited (3) 600 Robots Destroyed (31) 155 Value Destroyed (687) 687 Prototype IDs (0) 0 Alien Tech Used (0) 0 Bonus (0) 0 TOTAL SCORE: 2442 Bonus ------- None Cogmind --------- Core Integrity 0/550 Matter 133/300 Energy 100/100 System Corruption 0% Temperature Warning (387) Movement Core (50) Location -8/Materials Parts ------- > --- POWER (1) -------- (None) > --- PROPULSION (3) --- (None) > --- UTILITY (3) ------ (None) > --- WEAPON (4) ------- (None) > --- INVENTORY (5) ---- Light Ion Engine Light Ion Engine Flight Unit Peak State ------------ > --- POWER ------------ Improved Deuterium Engine > --- PROPULSION ------- Light Treads Improved Treads Improved Treads > --- UTILITY ---------- Improved Light Armor Plating Improved Light Armor Plating Improved Light Armor Plating > --- WEAPON ----------- Pulse Rifle Pulse Rifle Minigun Minigun > --- INVENTORY -------- Light Ion Engine Light Ion Engine Improved Treads Advanced Treads Flight Unit [Rating: 30] Favorites ----------- Power Ion Engine Engine Ion Engine Propulsion Improved Treads Treads Improved Treads Wheel Compact Wheel Flight Unit Flight Unit Utility Improved Light Armor Plating Storage Small Storage Unit Protection Improved Light Armor Plating Weapon Minigun Energy Gun Pulse Rifle Energy Cannon Particle Cannon Ballistic Gun Minigun Build | -11 -10 -9 -8 ------- Run | Yrd Mat Mat Mat Slots Evolved 4 | . . 2 2 Power . | . . . . Propulsion 1 | . . 1 . Utility 1 | . . 1 . Weapon 2 | . . . 2 Parts Attached 37 | 8 8 14 7 Power 5 | 1 1 1 2 Engine 5 | 1 1 1 2 Core . | . . . . Reactor . | . . . . Propulsion 16 | 4 5 4 3 Treads 9 | 2 . 4 3 Leg . | . . . . Wheel 2 | 2 . . . Hover . | . . . . Flight 5 | . 5 . . Utility 4 | 1 . 3 . Device . | . . . . Storage 1 | 1 . . . Processor . | . . . . Hackware . | . . . . Protection 3 | . . 3 . Artifact . | . . . . Weapon 12 | 2 2 6 2 Energy Gun 6 | 2 . 3 1 Energy Cannon 2 | . 1 1 . Ballistic Gun 4 | . 1 2 1 Ballistic Cannon . | . . . . Launcher . | . . . . Special Weapon . | . . . . Impact Weapon . | . . . . Slashing Weapon . | . . . . Piercing Weapon . | . . . . Special Melee Weapon . | . . . . Unidentified Prototypes . | . . . . Parts Lost 25 | . 5 6 14 Power 2 | . 1 . 1 Propulsion 11 | . 2 3 6 Utility 3 | . . . 3 Weapon 9 | . 2 3 4 Highest Loss Streak 13 | . 4 5 13 To Critical Strikes . | . . . . Average Backups 4 | 3 5 4 4 Power 1 | 1 1 1 1 Propulsion 1 | 1 1 1 2 Utility . | . . . . Weapon 1 | 1 3 1 . Tool/Special . | . . . . Unused Backups 7 | . 3 2 2 Power 1 | . . . 1 Propulsion 4 | . 2 1 1 Utility . | . . . . Weapon 2 | . 1 1 . Tool/Special . | . . . . Average Slot Usage (%) 73 | . 72 58 94 Engine 9 | . 13 8 8 Treads 20 | . . 30 25 Wheel 4 | . 16 . . Flight 1 | . 4 1 . Storage 2 | . 8 . . Protection 8 | . . 1 25 Energy Gun 15 | . 21 9 17 Energy Cannon 2 | . 3 3 . Ballistic Gun 8 | . 3 4 17 Peak Build Rating 30 | 6 6 23 30 Average Rating 13 | 4 5 9 27 On Entrance 8 | . 6 4 23 Avg Prop Armor Cover (%) . | . . . . Naked Turns 2 | . . . 2 Heaviest Build 31 | 14 14 20 31 Greatest Support 69 | 40 32 69 69 Greatest Overweight (x) 4 | . 4 1 1 Average Overweight (x) . | . . . . Largest Inventory Capacity 8 | 8 8 5 5 Average Capacity 5 | 7 6 5 5 Most Carried 8 | 8 8 5 5 Average Carried 4 | 4 5 4 4 Final Capacity 8 | 8 5 5 5 Final Carried 5 | 4 3 5 3 Class Distribution -------------------- 69% | Mutant 30% | Tank Dominant Class ---------------- Mutant | -10/Materials Mutant | -9/Materials Tank | -8/Materials Resources | -11 -10 -9 -8 ----------- Run | Yrd Mat Mat Mat Matter Collected 653 | 212 258 145 38 Remotely . | . . . . Salvage Created 808 | . 316 365 127 Parts 59 | . 22 28 9 Haulers Intercepted . | . . . . Recyclers Shooed 2 | . 2 . . Parts Field Recycled . | . . . . Retrieved Matter . | . . . . Parts Self-Destructed . | . . . . Prevented . | . . . . Parts Restored . | . . . . Kills | -11 -10 -9 -8 ------- Run | Yrd Mat Mat Mat Combat Hostiles Destroyed 30 | . 11 12 7 Guns 26 | . 10 9 7 Cannons 3 | . 1 2 . Classes Destroyed 4 | . 3 1 . Watcher 1 | . 1 . . Swarmer 18 | . 6 6 6 Grunt 8 | . 5 2 1 Sentry 4 | . . 4 . Best Kill Streak 4 | . 4 3 4 Combat Bots Only 4 | . 3 3 4 Max Kills in Single Turn 2 | . 2 2 2 Gunslinging 1 | . 1 . 1 Exploded . | . . . . Melee . | . . . . Uniques/NPCs Destroyed . | . . . . Combat | -11 -10 -9 -8 -------- Run | Yrd Mat Mat Mat Hostile Shots Fired 401 | . 70 154 177 Missed 88 | . 20 50 18 Hits 313 | . 50 104 159 Projectile 313 | . 50 104 159 Critical Strikes 8 | . . 3 5 Damage Taken 4080 | . 535 1286 2259 Core 1090 | . 209 329 552 Absorbed by Shields . | . . . . Core Remaining (%) 44 | 100 16 17 . Volleys Fired 78 | . 37 29 12 Largest 4 | . 2 2 4 Hottest 176 | . 100 124 176 Shots Fired 167 | . 70 53 44 Gun 149 | . 63 42 44 Cannon 18 | . 7 11 . Launcher . | . . . . Special . | . . . . Kinetic 46 | . 7 16 23 Thermal 121 | . 63 37 21 Explosive . | . . . . Electromagnetic . | . . . . Robot Hit Streak 18 | . 10 18 5 Robot Miss Streak 4 | . 4 4 4 Penetration Max . | . . . . Secondary Targets 6 | . 2 1 3 Max Gunslinging Chain 2 | . 1 1 2 Shots Hit Robots 97 | . 45 34 18 Core Hits 46 | . 19 17 10 Critical Kills . | . . . . Critical Parts Destroyed . | . . . . Critical Strikes 7 | . 4 2 1 Burn 7 | . 4 2 1 Melee Attacks . | . . . . Impact . | . . . . Slashing . | . . . . Piercing . | . . . . Sneak Attacks . | . . . . Combat Hostiles . | . . . . Follow-up Attacks . | . . . . Damage Inflicted 1608 | . 587 552 469 Guns 1429 | . 517 443 469 Cannons 161 | . 70 91 . Explosions . | . . . . Melee . | . . . . Ramming 18 | . . 18 . Kinetic 475 | . 81 144 250 Thermal 1115 | . 506 390 219 Explosive . | . . . . Electromagnetic . | . . . . Impact . | . . . . Slashing . | . . . . Piercing . | . . . . Highest Corruption 1 | . . 1 . Average Corruption 1 | . . 1 . Corruption Purged . | . . . . Corruption Blocked . | . . . . Overload Shots . | . . . . Overflow Damage . | . . . . Projectiles . | . . . . Explosions . | . . . . Melee . | . . . . Knockbacks . | . . . . Impact . | . . . . Kinetic . | . . . . Secondary . | . . . . Self-Inflicted Damage . | . . . . Shots . | . . . . Rammed 14 | . . 14 . Targets Rammed 14 | . . 14 . Kicked . | . . . . Crushed . | . . . . Highest Temperature 714 | . 608 163 714 Average Temperature 223 | . 201 45 398 Received Heat Transfer 1806 | . 207 384 1215 Effects 36 | . 16 . 20 Shutdowns 7 | . 3 . 4 Energy Bleed 7 | . 3 . 4 Interference 4 | . 2 . 2 Matter Decay 7 | . 5 . 2 Short Circuit 4 | . . . 4 Damage (minor) 3 | . 1 . 2 Damage (major) 3 | . 2 . 1 Damage (core) 1 | . . . 1 Siege Activations . | . . . . Martial Activations . | . . . . Shielding Activations . | . . . . Robots Disrupted . | . . . . Combat Hostiles . | . . . . Robots Corrupted . | . . . . Combat Hostiles . | . . . . Parts Fried . | . . . . Impact Corruptions . | . . . . Robots Melted 1 | . . 1 . Combat Hostiles 1 | . . 1 . Parts Melted 9 | . 6 1 2 Heat Transferred 3404 | . 1739 1110 555 Parts Sabotaged . | . . . . Parts Stolen . | . . . . Parts Stripped . | . . . . Power Chain Reactions . | . . . . Alert | -11 -10 -9 -8 ------- Run | Yrd Mat Mat Mat Maximum Alert Level . | . . . . Low Security (%) 100 | 100 100 100 100 Level 1 . | . . . . Level 2 . | . . . . Level 3 . | . . . . Level 4 . | . . . . Level 5 . | . . . . High Security . | . . . . Max Security . | . . . . Peak Influence 145 | . 145 145 92 Initial 50 | . . 50 8 Average 49 | . 53 77 23 Influence Increases 900 | . 333 325 242 Destroy 0b10 Robot/C 600 | . 220 240 140 Destroy 0b10 Robot/NC 5 | . 5 . . Destroy Leader 142 | . 42 70 30 Successful Hack 16 | . 5 . 11 Destroy Structure 2 | . 1 . 1 Lose Combat Pursuer 135 | . 60 15 60 Influence Decreases 900 | . 214 423 263 Entered New Map 82 | . . 69 13 Time Decay 622 | . 164 294 164 Lost Part 196 | . 50 60 86 Squads Dispatched 3 | . 1 . 2 Investigation 2 | . 1 . 1 Extermination . | . . . . Reinforcement 1 | . . . 1 Assault . | . . . . Garrison . | . . . . Intercept . | . . . . Searches Triggered . | . . . . Construction Impeded . | . . . . Haulers Reinforced . | . . . . Active Scanning Responses . | . . . . Cargo Convoy Interrupts . | . . . . Stealth | -11 -10 -9 -8 --------- Run | Yrd Mat Mat Mat Distress Signals 5 | . 1 1 3 Communications Jammed . | . . . . Distress Signals . | . . . . Times Spotted 54 | . 18 15 21 Peak Tracking Total 10 | . 7 5 10 Tactical Retreats 6 | . 3 1 2 Traps | -11 -10 -9 -8 ------- Run | Yrd Mat Mat Mat Traps Triggered 2 | . 1 1 . Indirectly . | . . . . Trap Hack Attempts . | . . . . Triggered . | . . . . Disarmed . | . . . . Reprogrammed . | . . . . Reused . | . . . . Traps Extracted . | . . . . Installed . | . . . . Triggered . | . . . . Machines | -11 -10 -9 -8 ---------- Run | Yrd Mat Mat Mat Machines Disabled . | . . . . Max in Single Turn . | . . . . Machines Repaired . | . . . . Machines Dismantled . | . . . . Machines Sabotaged . | . . . . Overloaded Fab Kills . | . . . . Hacking | -11 -10 -9 -8 --------- Run | Yrd Mat Mat Mat Machines Accessed 6 | . 3 . 3 Terminals 6 | . 3 . 3 Fabricators . | . . . . Repair Stations . | . . . . Recycling Units . | . . . . Scanalyzers . | . . . . Garrison Access . | . . . . Total Hacks 16 | . 7 . 9 Successful 12 | . 6 . 6 Failed 4 | . 1 . 3 Catastrophic 1 | . . . 1 Database Lockouts . | . . . . Manual . | . . . . Terminals 16 | . 7 . 9 Fabricators . | . . . . Repair Stations . | . . . . Recycling Units . | . . . . Scanalyzers . | . . . . Garrison Access . | . . . . Terminal Hacks 12 | . 6 . 6 Record 2 | . 2 . . Emergency Access Points 1 | . . . 1 Terminal Index 1 | . 1 . . Recycling Unit Index 1 | . . . 1 Alert Level 1 | . . . 1 Transport Status 2 | . 2 . . Investigation Status 1 | . . . 1 Hauler Manifests 1 | . . . 1 Zone Layout 2 | . 1 . 1 Fabricator Hacks . | . . . . Repair Station Hacks . | . . . . Recycling Unit Hacks . | . . . . Scanalyzer . | . . . . Garrison Access Hacks . | . . . . Unauthorized Hacks . | . . . . Terminals . | . . . . Fabricators . | . . . . Repair Stations . | . . . . Recycling Units . | . . . . Scanalyzers . | . . . . Garrison Access . | . . . . Data Cores Recovered . | . . . . Used . | . . . . Hacking Detections 5 | . 2 . 3 Full Trace Events 2 | . 1 . 1 Feedback Events . | . . . . Feedback Blocked . | . . . . Robot Schematics Acquired . | . . . . Robots Built . | . . . . Authchips . | . . . . Time . | . . . . Total Robot Build Rating . | . . . . Part Schematics Acquired . | . . . . Parts Built . | . . . . Authchips . | . . . . Time . | . . . . Total Part Build Rating . | . . . . Part Studies Acquired . | . . . . Parts Repaired . | . . . . Time . | . . . . Parts Recycled . | . . . . Recycled Matter . | . . . . Retrieved Matter . | . . . . Retrieved Components . | . . . . Parts Scanalyzed . | . . . . Part Schematics Acquired . | . . . . Parts Damaged . | . . . . Bothacking | -11 -10 -9 -8 ------------ Run | Yrd Mat Mat Mat Used RIF Installer . | . . . . Robots Hacked . | . . . . Non-combat . | . . . . Combat . | . . . . Robot Hacks Applied . | . . . . Relay Couplers Released . | . . . . Fabnet Peak Effective % . | . . . . Robots Rewired . | . . . . Allies Hacked . | . . . . Hacks Repelled . | . . . . Allies | -11 -10 -9 -8 -------- Run | Yrd Mat Mat Mat Total Allies . | . . . . Largest Group . | . . . . Highest-Rated Group . | . . . . Highest-Rated Ally . | . . . . Total Orders . | . . . . Ally Attacks . | . . . . Total Damage . | . . . . Kills . | . . . . Allies Corrupted . | . . . . Allies Melted . | . . . . Intel | -11 -10 -9 -8 ------- Run | Yrd Mat Mat Mat Active Infowar (turns) . | . . . . Robot Analysis Total . | . . . . Derelict Logs Recovered . | . . . . Drone Launches . | . . . . Drone Recoveries . | . . . . Exploration | -11 -10 -9 -8 ------------- Run | Yrd Mat Mat Mat Turns Passed 1764 | 137 438 654 535 Spaces Moved 842 | 71 301 323 147 Core 44 | 9 33 2 . Treads 435 | 22 . 266 147 Legs . | . . . . Wheels 212 | 40 172 . . Hover . | . . . . Flight 151 | . 96 55 . Fastest Speed 37 | 50 37 37 160 Average Speed 122 | 112 86 139 160 Slowest Speed 250 | 160 250 160 240 Overloaded Moves . | . . . . Propulsion Burnouts . | . . . . Robots Hopped 5 | . 4 1 . Potential Cave-ins . | . . . . Cave-ins Triggered . | . . . . Exploration Rate (%) 24 | 5 51 30 12 Regions Visited 3 Branch Regions . Pre-discovered Areas . | . . . . Known Exits Taken . | . . . . Unknown Exits Taken 3 | 1 1 1 . Scrap Searched . | . . . . Spaces Dug . | . . . . Terrain Destroyed . | . . . . Melee . | . . . . Projectile . | . . . . AOE . | . . . . Terrain Rammed . | . . . . Walls Destroyed . | . . . . Machines Disabled . | . . . . Actions | -11 -10 -9 -8 --------- Run | Yrd Mat Mat Mat Total 1419 | 128 406 463 422 Wait 403 | 37 49 66 251 Move 829 | 70 292 320 147 Hop 5 | . 4 1 . Pick Up 35 | 11 9 12 3 Fast Attach 7 | 1 . 6 . Attach 25 | 7 6 7 5 Detach . | . . . . Swap 7 | . 2 3 2 Drop 16 | 2 7 5 2 Fire 78 | . 37 29 12 Melee . | . . . . Ram . | . . . . Kick . | . . . . Crush 14 | . . 14 . Escape Stasis . | . . . . Rewire . | . . . . Trap . | . . . . Miscellaneous . | . . . . Route ------- -11/Scrapyard -10/Materials (discovered 2 exits: [*Mat] / [*Min]) -9/Materials -8/Materials History --------- Turn | Location | Event 39 | -11/Scrapyard | Discovered new exit (range 16) 138 | -11/Scrapyard | Entered Materials 276 | -10/Materials | Discovered new exit (range 12) 310 | -10/Materials | Build established: Mutant 457 | -10/Materials | Core integrity fell below 50% 507 | -10/Materials | Lost 4 parts (2n2w) 533 | -10/Materials | Discovered new exit (range 16) 572 | -10/Materials | Core integrity fell below 20% 576 | -10/Materials | Entered another Materials area 576 | -9/Materials | Evolved 2 slots: Propulsion x1, Utility x1 649 | -9/Materials | Lost 5 parts (1p2n2w) 740 | -9/Materials | Core integrity fell below 50% 1150 | -9/Materials | Discovered new exit (range 15) 1159 | -9/Materials | Core integrity fell below 20% 1230 | -9/Materials | Entered another Materials area 1230 | -8/Materials | Evolved 2 slots: Weapon x2 1480 | -8/Materials | Build established: Tank 1742 | -8/Materials | Core integrity fell below 50% 1758 | -8/Materials | Core integrity fell below 20% 1765 | -8/Materials | Destroyed by G-47 Trooper with Particle Gun Last Messages --------------- 01746_ Overheating: Core damaged (-66). 01746_ K-01 Serf collects debris. 01747_ Imp. Deuterium Engine destroyed. 01747_ K-01 Serf collects debris. 01748_ Overheating: Energy bleed (-18). 01749_ Imp. Treads broken. 01749_ Overheating: Short circuit. 01749_ K-01 Serf cleans the Terminal. 01751_ Pulse Rifle destroyed. 01752_ Overheating: Energy bleed (-19). 01754_ K-01 Serf cleans the Terminal. 01755_ Critical hit (Burn: +37). 01756_ W-25 Informer sends out distress signal. 01757_ Adv. Treads broken. 01757_ Overheating: Short circuit. 01757_ Broken Adv. Treads destroyed. 01757_ K-01 Serf cleans the Terminal. 01760_ Overheating: Energy bleed (-19). 01760_ K-01 Serf cleans the Terminal. 01763_ Broken Imp. Treads destroyed. Map ----- +----------------------------------------------------+ | ?????????????????????????????????????????????????? | | ?????????????????????????????????????????????????? | | ?????????????????????????????????????????????????? | | ?????????????????????????????????????????????????? | | ?????????????????????????????????????????????????? | | ?????????????????????????????????????????????????? | | ?????????????????????????????????????????????????? | | ?????????????????????????????????????????????????? | | ?????????????????????????????????????????????????? | | ?????????????????????????????????????????????????? | | ???????????????????????? ??????????????????????? | | ???????????????????????? ??????????????????????? | | ???????????????????????? ??????????????????????? | | ???????????????????????# #?????????????????????? | | ???????????????????????# #?????????????????????? | | ???????????????????????# #?????????????????????? | | ???????????????????????#% #?????????????????????? | | ???????????????????????# #?????????????????????? | | ???????????????????????# #?????????????????????? | | ???????????????????????+ ;?????????????????????? | | ???????????????????????# #?????????????????????? | | ???????????????????????# #?????????????????????? | | ???????????????????????# #?????????????????????? | | ?????????#############?# g #?????????????????????? | | ?????????# # #?#ggg#?????????????????????? | | ?????????# # #?# @ #?????????????????????? | | ?????????# """ # " #?# #?????????????????????? | | ?????????# """ # T #?# a #?????????????????????? | | ?????????# """ + " #?# rg#?????????????????????? | | ######???# # ### %###############???????? | | #######+######+### % ??????? | | "" ] # k ^ ??????? | | "" # kT ??????? | | "" # ]w #############????????? | | "" ]# ############## #????????????????????? | | # #??????###############??????????????????? | | #+#### #####??# #??????????????????? | | # **#??# #??????????????????? | | # *#??# #??????????????????? | | # "" [[#??# #??????????????????? | | # "" * [[#??# ###????????????????? | | # "T //#??# ## ????????????????? | | # "" //#??#####/########## ????????????????? | | "" ########### ######### ????????????????? | | # T # # # ????????????????? | | # | # # # ????????????????? | | # # # # ????????????????? | | # """ """ # # # ????????????????? | | " """ """ # # # ????????????????? | | # """ """ # # # ????????????????? | +----------------------------------------------------+ Best States ------------- Heat Dissipation 31 Energy Generation 16 Energy Capacity 290 Matter Stores 300 Matter Capacity 300 Sight Range 16 Terrain Scan Density 10 Armor Coverage 450 Evasion (%) 62 Recoil Reduction 3 Item Schematics ----------------- None Robot Schematics ------------------ None Fabricated ------------ Nothing Repaired ---------- Nothing Studied --------- None Alien Tech Used ----------------- None Achievements -------------- None Challenges ------------ None Game ------ Seed ProjectionNanofilamentsGuard Manual? 0 Play Time 00:20:04 Cumulative 41.1 hours Start 2026.07.06 @ 17:58:13 End 2026.07.06 @ 18:16:44 Sessions 1 Manual Loads 0 Difficulty Rogue Special Mode None Game No. 60 Rogue 32 Adventurer 28 Explorer 0 Win Type - Total 0 Types 0/0/0/0/0/0/0/0/0/0 Lore% 16 Gallery% 28 Achievement% 21 Wizard Run 0 Options --------- Layout 1 ASCII 0 Keyboard 0 Movement Mouse Keybinds 0 Fullscreen 1 Font 24/Smallcaps Map View 50x35 Zoom Use 0% Tactical HUD 1 Map Filters NONE Filters NONE Steam 1 RUN: 15ed20ad-c176-489b-9495-d850cfe975b9